{"text_format":"1","workbook":"xlsx","n_sheets":56,"sheets":["CombinedData","Admin (internal use only)","User Guide","Environment List","AirportEnclosed","AirportOpen","BusExterior","Leisure","MotorwayServiceStation","RailStation","RetailEnclosed","Roadside","ShoppingPrecinct","SupermarketExterior","TaxiExterior","TrainCarriageInterior","TramCarriageInterior","TubeCarriageInterior","UndergroundStation","BarsPubs","ExhibitionAndEventVenues","FerriesPorts","GPSurgeries","GymsHealthSportsClubs","Hospitals","Metro","MobileAdvertising","MusicVenues","NonClassified","NonRouteAirportEnclosed","NonRouteAirportOpen","NonRouteBusExterior","NonRouteBusStation","NonRouteLeisure","NonRouteMotorwayServiceStation","NonRouteRailStation","NonRouteRetailEnclosed","NonRouteRoadside","NonRouteShoppingPrecinct","NonRouteSupermarketExterior","NonRouteTaxiExterior","NonRouteTrainCarriageInterior","NonRouteTramCarriageInterior","NonRouteTubeCarriageInterior","NonRouteUndergroundStation","NurseriesPlayCentres","Offices","PetrolForecourts","Residential","RetailOther","RetailParks","Schools","SportsVenues","SupermarketInteriors","Universities","VeterinarySurgeries"],"not_rendered":{"charts":0,"images":4,"macros":1,"external_links":0,"defined_names":0,"comments":52,"pivot_tables":0},"unopened":[],"bounds":{"document_bytes":16777216,"sheet_cells":100000,"rows_first":2000,"rows_last":500,"rows_between":2000,"halvings":0,"cell_chars":16384,"cell_head_chars":4096},"cells_cut":0,"cells_raw":0,"read":"whole","date_system":"1900"}

{"sheet":"CombinedData","index":0,"n_rows":0,"n_cols":0,"rows_kept":0,"cut":false,"hidden":true,"merged":[]}

{"sheet":"Admin (internal use only)","index":1,"n_rows":0,"n_cols":0,"rows_kept":0,"cut":false,"hidden":true,"merged":[]}

{"sheet":"User Guide","index":2,"n_rows":0,"n_cols":0,"rows_kept":0,"cut":false,"hidden":false,"merged":[]}

{"sheet":"Environment List","index":3,"n_rows":56,"n_cols":5,"rows_kept":56,"cut":false,"hidden":false,"merged":[[1,0,15,0],[19,0,55,0]]}
[null,"SPACE Environment Description","Route Environment Description\n(only for Route environments)","Tab Name","Row Count\n(populated automatically)"]
["Route","Airport Enclosed ","Airport - enclosed (Airport interior) - 15","AirportEnclosed",{"$f":"COUNTA(AirportEnclosed!B:B)-1","v":0}]
[null,"Airport Open ","Airport - open (Airport exterior) - 16","AirportOpen",{"$f":"COUNTA(AirportOpen!B:B)-1","v":0}]
[null,"Bus ","Bus exterior - 3","BusExterior",{"$f":"COUNTA(BusExterior!B:B)-1","v":0}]
[null,"Cinema ","Leisure (Leisure centres, gymnasia, sports centres) - 9","Leisure",{"$f":"COUNTA(Leisure!B:B)-1","v":0}]
[null,"Motorway Service Areas ","Motorway service station - 18","MotorwayServiceStation",{"$f":"COUNTA(MotorwayServiceStation!B:B)-1","v":0}]
[null,"RailStation","Rail Station - 11","RailStation",{"$f":"COUNTA(RailStation!B:B)-1","v":0}]
[null,"Roadside ","Roadside (Inventory with a vehicular audience) - 1","Roadside",{"$f":"COUNTA(Roadside!B:B)-1","v":0}]
[null,"Shopping Centre Enclosed ","Retail - enclosed (Shopping mall interior) - 7","RetailEnclosed",{"$f":"COUNTA(RetailEnclosed!B:B)-1","v":0}]
[null,"Shopping Precinct ","Shopping precinct - 8","ShoppingPrecinct",{"$f":"COUNTA(ShoppingPrecinct!B:B)-1","v":0}]
[null,"Supermarket Exteriors ","Supermarket exterior - 20","SupermarketExterior",{"$f":"COUNTA(SupermarketExterior!B:B)-1","v":0}]
[null,"Taxi ","Taxi exterior - 2","TaxiExterior",{"$f":"COUNTA(TaxiExterior!B:B)-1","v":0}]
[null,"Train (Carriage interior) ","Train carriage interior - 13","TrainCarriageInterior",{"$f":"COUNTA(TrainCarriageInterior!B:B)-1","v":0}]
[null,"Tram ","Tram or light railway carriage interior - 17","TramCarriageInterior",{"$f":"COUNTA(TramCarriageInterior!B:B)-1","v":0}]
[null,"Underground (Tube carriage interior) ","Tube carriage interior - 14","TubeCarriageInterior ",{"$f":"COUNTA(TubeCarriageInterior!B:B)-1","v":0}]
[null,"Underground (Tube station interior) ","Underground station (Tube station interior) - 12","UndergroundStation ",{"$f":"COUNTA(UndergroundStation!B:B)-1","v":0}]
[]
[]
[]
["Non Route","Airport Enclosed ",null,"NonRouteAirportEnclosed",{"$f":"COUNTA(NonRouteAirportEnclosed!B:B)-1","v":0}]
[null,"Airport Open ",null,"NonRouteAirportOpen",{"$f":"COUNTA(NonRouteAirportOpen!B:B)-1","v":0}]
[null,"Bars/Pubs ",null,"BarsPubs",{"$f":"COUNTA(BarsPubs!B:B)-1","v":0}]
[null,"Bus ",null,"NonRouteBusExterior",{"$f":"COUNTA(NonRouteBusExterior!B:B)-1","v":0}]
[null,"Bus (Inside bus terminal) ",null,"NonRouteBusStation",{"$f":"COUNTA(NonRouteBusStation!B:B)-1","v":0}]
[null,"Cinema ",null,"NonRouteLeisure",{"$f":"COUNTA(NonRouteLeisure!B:B)-1","v":0}]
[null,"Exhibition and Event Venues ",null,"ExhibitionAndEventVenues",{"$f":"COUNTA(ExhibitionAndEventVenues!B:B)-1","v":0}]
[null,"Ferries and Ports ",null,"FerriesPorts",{"$f":"COUNTA(FerriesPorts!B:B)-1","v":0}]
[null,"GP Surgeries ",null,"GPSurgeries",{"$f":"COUNTA(GPSurgeries!B:B)-1","v":0}]
[null,"Gyms/Health Clubs/Sports Clubs ",null,"GymsHealthSportsClubs",{"$f":"COUNTA(GymsHealthSportsClubs!B:B)-1","v":0}]
[null,"Hospitals ",null,"Hospitals",{"$f":"COUNTA(Hospitals!B:B)-1","v":0}]
[null,"Metro ",null,"Metro",{"$f":"COUNTA(Metro!B:B)-1","v":0}]
[null,"Mobile Advertising ",null,"MobileAdvertising",{"$f":"COUNTA(MobileAdvertising!B:B)-1","v":0}]
[null,"Motorway Service Areas ",null,"NonRouteMotorwayServiceStation",{"$f":"COUNTA(NonRouteMotorwayServiceStation!B:B)-1","v":0}]
[null,"Music Venues ",null,"MusicVenues",{"$f":"COUNTA(MusicVenues!B:B)-1","v":0}]
[null,"Non-Classified Environments ",null,"NonClassified",{"$f":"COUNTA(NonClassified!B:B)-1","v":0}]
[null,"Nurseries/Play Centres ",null,"NurseriesPlayCentres",{"$f":"COUNTA(NurseriesPlayCentres!B:B)-1","v":0}]
[null,"Offices ",null,"Offices",{"$f":"COUNTA(Offices!B:B)-1","v":0}]
[null,"Petrol Forecourts ",null,"PetrolForecourts",{"$f":"COUNTA(PetrolForecourts!B:B)-1","v":0}]
[null,"Residential",null,"Residential",{"$f":"COUNTA(Residential!B:B)-1","v":0}]
[null,"Retail (Other) ",null,"RetailOther",{"$f":"COUNTA(RetailOther!B:B)-1","v":0}]
[null,"Retail Parks ",null,"RetailParks",{"$f":"COUNTA(RetailParks!B:B)-1","v":0}]
[null,"Roadside ",null,"NonRouteRoadside",{"$f":"COUNTA(NonRouteRoadside!B:B)-1","v":0}]
[null,"Schools ",null,"Schools",{"$f":"COUNTA(Schools!B:B)-1","v":0}]
[null,"Shopping Centre Enclosed ",null,"NonRouteRetailEnclosed",{"$f":"COUNTA(NonRouteRetailEnclosed!B:B)-1","v":0}]
[null,"Shopping Precinct ",null,"NonRouteShoppingPrecinct",{"$f":"COUNTA(NonRouteShoppingPrecinct!B:B)-1","v":0}]
[null,"Sports Venues ",null,"SportsVenues",{"$f":"COUNTA(SportsVenues!B:B)-1","v":0}]
[null,"Supermarket Exteriors ",null,"NonRouteSupermarketExterior",{"$f":"COUNTA(NonRouteSupermarketExterior!B:B)-1","v":0}]
[null,"Supermarket Interiors ",null,"SupermarketInteriors",{"$f":"COUNTA(SupermarketInteriors!B:B)-1","v":0}]
[null,"Taxi ",null,"NonRouteTaxiExterior",{"$f":"COUNTA(NonRouteTaxiExterior!B:B)-1","v":0}]
[null,"Train (Carriage interior) ",null,"NonRouteTrainCarriageInterior",{"$f":"COUNTA(NonRouteTrainCarriageInterior!B:B)-1","v":0}]
[null,"Train (Rail station interior) ",null,"NonRouteRailStation",{"$f":"COUNTA(NonRouteRailStation!B:B)-1","v":0}]
[null,"Tram ",null,"NonRouteTramCarriageInterior",{"$f":"COUNTA(NonRouteTramCarriageInterior!B:B)-1","v":0}]
[null,"Underground (Tube carriage interior) ",null,"NonRouteTubeCarriageInterior",{"$f":"COUNTA(NonRouteTubeCarriageInterior!B:B)-1","v":0}]
[null,"Underground (Tube station interior) ",null,"NonRouteUndergroundStation",{"$f":"COUNTA(NonRouteUndergroundStation!B:B)-1","v":0}]
[null,"Universities ",null,"Universities ",{"$f":"COUNTA(Universities!B:B)-1","v":0}]
[null,"Veterinary Surgeries ",null,"VeterinarySurgeries ",{"$f":"COUNTA(VeterinarySurgeries!B:B)-1","v":0}]

{"sheet":"AirportEnclosed","index":4,"n_rows":2,"n_cols":30,"rows_kept":2,"cut":false,"hidden":false,"merged":[]}
["Environment","FrameID","Future Start Date","Type","Faces","Illumination","Location","Sales code","Media Owner Frame Reference","Legacy Site Number","Tags","Prohibitions","Production Spec ID","Production Spec not provided reason","SPACE Format","Width","Height","Surface Area","Frame Position ID","Map ID","MGE Indoor Coordinate Latitude","MGE Indoor Coordinate Longitude","World Geodetic Coordinate Latitude","World Geodetic Coordinate Longitude","Address","PostCode","Spot Length","Break Length","Share of Time %","Media Owner Attribute"]
["AirportEnclosed"]

{"sheet":"AirportOpen","index":5,"n_rows":2,"n_cols":28,"rows_kept":2,"cut":false,"hidden":false,"merged":[]}
["Environment","FrameID","Future Start Date","Type","Faces","Illumination","Location","Sales code","Media Owner Frame Reference","Legacy Site Number","Tags","Prohibitions","Production Spec ID","Production Spec not provided reason","SPACE Format","Width","Height","Surface Area","Frame Position ID","Map ID","World Geodetic Coordinate Latitude","World Geodetic Coordinate Longitude","Address","PostCode","Spot Length","Break Length","Share of Time %","Media Owner Attribute"]
["AirportOpen"]

{"sheet":"BusExterior","index":6,"n_rows":2,"n_cols":28,"rows_kept":2,"cut":false,"hidden":false,"merged":[]}
["Environment","FrameID","Future Start Date","Type","Faces","Illumination","Location","Sales code","Media Owner Frame Reference","Legacy Site Number","Tags","Prohibitions","Production Spec ID","Production Spec not provided reason","SPACE Format","Width","Height","Surface Area","Depot Address","Depot ID","Depot PostCode","Depot World Geodetic Coordinate Latitiude","Depot World Geodetic Coordinate Longtiude","Vehicle Creative Position","Spot Length","Break Length","Share of Time %","Media Owner Attribute"]
["BusExterior"]

{"sheet":"Leisure","index":7,"n_rows":2,"n_cols":30,"rows_kept":2,"cut":false,"hidden":false,"merged":[]}
["Environment","FrameID","Future Start Date","Type","Faces","Illumination","Location","Sales code","Media Owner Frame Reference","Legacy Site Number","Tags","Prohibitions","Production Spec ID","Production Spec not provided reason","SPACE Format","Width","Height","Surface Area","Frame Position ID","Map ID","MGE Indoor Coordinate Latitude","MGE Indoor Coordinate Longitude","World Geodetic Coordinate Latitude","World Geodetic Coordinate Longitude","Address","PostCode","Spot Length","Break Length","Share of Time %","Media Owner Attribute"]
["Leisure"]

{"sheet":"MotorwayServiceStation","index":8,"n_rows":2,"n_cols":28,"rows_kept":2,"cut":false,"hidden":false,"merged":[]}
["Environment","FrameID","Future Start Date","Type","Faces","Illumination","Location","Sales code","Media Owner Frame Reference","Legacy Site Number","Tags","Prohibitions","Production Spec ID","Production Spec not provided reason","SPACE Format","Width","Height","Surface Area","Frame Position ID","Map ID","World Geodetic Coordinate Latitude","World Geodetic Coordinate Longitude","Address","PostCode","Spot Length","Break Length","Share of Time %","Media Owner Attribute"]
["MotorwayServiceStation"]

{"sheet":"RailStation","index":9,"n_rows":2,"n_cols":32,"rows_kept":2,"cut":false,"hidden":false,"merged":[]}
["Environment","FrameID","Future Start Date","Type","Faces","Illumination","Location","Sales code","Media Owner Frame Reference","Legacy Site Number","Tags","Localities","Prohibitions","Production Spec ID","Production Spec not provided reason","SPACE Format","Width","Height","Surface Area","Frame Position ID","Map ID","MGE Indoor Coordinate Latitude","MGE Indoor Coordinate Longitude","Train Operating Company","World Geodetic Coordinate Latitude","World Geodetic Coordinate Longitude","Address","PostCode","Spot Length","Break Length","Share of Time %","Media Owner Attribute"]
["RailStation"]

{"sheet":"RetailEnclosed","index":10,"n_rows":2,"n_cols":31,"rows_kept":2,"cut":false,"hidden":false,"merged":[]}
["Environment","FrameID","Future Start Date","Type","Faces","Illumination","Location","Sales code","Media Owner Frame Reference","Legacy Site Number","Tags","Localities","Prohibitions","Production Spec ID","Production Spec not provided reason","SPACE Format","Width","Height","Surface Area","Frame Position ID","Map ID","MGE Indoor Coordinate Latitude","MGE Indoor Coordinate Longitude","World Geodetic Coordinate Latitude","World Geodetic Coordinate Longitude","Address","PostCode","Spot Length","Break Length","Share of Time %","Media Owner Attribute"]
["RetailEnclosed"]

{"sheet":"Roadside","index":11,"n_rows":2,"n_cols":26,"rows_kept":2,"cut":false,"hidden":false,"merged":[]}
["Environment","FrameID","Future Start Date","Type","Faces","Illumination","Location","Sales code","Media Owner Frame Reference","Legacy Site Number","Tags","Prohibitions","Production Spec ID","Production Spec not provided reason","SPACE Format","Width","Height","Surface Area","World Geodetic Coordinate Latitude","World Geodetic Coordinate Longitude","Address","PostCode","Spot Length","Break Length","Share of Time %","Media Owner Attribute"]
["Roadside"]

{"sheet":"ShoppingPrecinct","index":12,"n_rows":2,"n_cols":31,"rows_kept":2,"cut":false,"hidden":false,"merged":[]}
["Environment","FrameID","Future Start Date","Type","Faces","Illumination","Location","Sales code","Media Owner Frame Reference","Legacy Site Number","Tags","Localities","Prohibitions","Production Spec ID","Production Spec not provided reason","SPACE Format","Width","Height","Surface Area","Frame Position ID","Map ID","MGE Indoor Coordinate Latitude","MGE Indoor Coordinate Longitude","World Geodetic Coordinate Latitude","World Geodetic Coordinate Longitude","Address","PostCode","Spot Length","Break Length","Share of Time %","Media Owner Attribute"]
["ShoppingPrecinct"]

{"sheet":"SupermarketExterior","index":13,"n_rows":2,"n_cols":29,"rows_kept":2,"cut":false,"hidden":false,"merged":[]}
["Environment","FrameID","Future Start Date","Type","Faces","Illumination","Location","Sales code","Media Owner Frame Reference","Legacy Site Number","Tags","Localities","Prohibitions","Production Spec ID","Production Spec not provided reason","SPACE Format","Width","Height","Surface Area","Frame Position ID","Map ID","World Geodetic Coordinate Latitude","World Geodetic Coordinate Longitude","Address","PostCode","Spot Length","Break Length","Share of Time %","Media Owner Attribute"]
["SupermarketExterior"]

{"sheet":"TaxiExterior","index":14,"n_rows":2,"n_cols":29,"rows_kept":2,"cut":false,"hidden":false,"merged":[]}
["Environment","FrameID","Future Start Date","Type","Faces","Illumination","Location","Sales code","Media Owner Frame Reference","Legacy Site Number","Tags","Prohibitions","Production Spec ID","Production Spec not provided reason","SPACE Format","Width","Height","Surface Area","Depot Address","Depot ID","Depot PostCode","Depot World Geodetic Coordinate Latitiude","Depot World Geodetic Coordinate Longtiude","Heathrow","Vehicle Creative Position","Spot Length","Break Length","Share of Time %","Media Owner Attribute"]
["TaxiExterior"]

{"sheet":"TrainCarriageInterior","index":15,"n_rows":2,"n_cols":28,"rows_kept":2,"cut":false,"hidden":false,"merged":[]}
["Environment","FrameID","Future Start Date","Type","Faces","Illumination","Location","Sales code","Media Owner Frame Reference","Legacy Site Number","Tags","Localities","Prohibitions","Production Spec ID","Production Spec not provided reason","SPACE Format","Width","Height","Surface Area","Frame Position ID","Map ID","Train Operating Company","World Geodetic Coordinate Latitude","World Geodetic Coordinate Longitude","Spot Length","Break Length","Share of Time %","Media Owner Attribute"]
["TrainCarriageInterior"]

{"sheet":"TramCarriageInterior","index":16,"n_rows":2,"n_cols":27,"rows_kept":2,"cut":false,"hidden":false,"merged":[]}
["Environment","FrameID","Future Start Date","Type","Faces","Illumination","Location","Sales code","Media Owner Frame Reference","Legacy Site Number","Tags","Prohibitions","Production Spec ID","Production Spec not provided reason","SPACE Format","Width","Height","Surface Area","Frame Position ID","Map ID","TramOrLightRailwayLine","World Geodetic Coordinate Latitude","World Geodetic Coordinate Longitude","Spot Length","Break Length","Share of Time %","Media Owner Attribute"]
["TramCarriageInterior"]

{"sheet":"TubeCarriageInterior","index":17,"n_rows":2,"n_cols":28,"rows_kept":2,"cut":false,"hidden":false,"merged":[]}
["Environment","FrameID","Future Start Date","Type","Faces","Illumination","Location","Sales code","Media Owner Frame Reference","Legacy Site Number","Tags","Localities","Prohibitions","Production Spec ID","Production Spec not provided reason","SPACE Format","Width","Height","Surface Area","Frame Position ID","Map ID","UndergroundLine","World Geodetic Coordinate Latitude","World Geodetic Coordinate Longitude","Spot Length","Break Length","Share of Time %","Media Owner Attribute"]
["TubeCarriageInterior"]

{"sheet":"UndergroundStation","index":18,"n_rows":2,"n_cols":32,"rows_kept":2,"cut":false,"hidden":false,"merged":[]}
["Environment","FrameID","Future Start Date","Type","Faces","Illumination","Location","Sales code","Media Owner Frame Reference","Legacy Site Number","Tags","Localities","Prohibitions","Production Spec ID","Production Spec not provided reason","SPACE Format","Width","Height","Surface Area","Frame Position ID","Map ID","UndergroundLine","MGE Indoor Coordinate Latitude","MGE Indoor Coordinate Longitude","World Geodetic Coordinate Latitude","World Geodetic Coordinate Longitude","Address","PostCode","Spot Length","Break Length","Share of Time %","Media Owner Attribute"]
["UndergroundStation"]

{"sheet":"BarsPubs","index":19,"n_rows":2,"n_cols":26,"rows_kept":2,"cut":false,"hidden":false,"merged":[]}
["Environment","FrameID","Future Start Date","Type","Faces","Illumination","Location","Sales code","Media Owner Frame Reference","Legacy Site Number","Tags","Prohibitions","Production Spec ID","Production Spec not provided reason","SPACE Format","Width","Height","Surface Area","World Geodetic Coordinate Latitude","World Geodetic Coordinate Longitude","Address","PostCode","Spot Length","Break Length","Share of Time %","Media Owner Attribute"]
["BarsPubs"]

{"sheet":"ExhibitionAndEventVenues","index":20,"n_rows":2,"n_cols":26,"rows_kept":2,"cut":false,"hidden":false,"merged":[]}
["Environment","FrameID","Future Start Date","Type","Faces","Illumination","Location","Sales code","Media Owner Frame Reference","Legacy Site Number","Tags","Prohibitions","Production Spec ID","Production Spec not provided reason","SPACE Format","Width","Height","Surface Area","World Geodetic Coordinate Latitude","World Geodetic Coordinate Longitude","Address","PostCode","Spot Length","Break Length","Share of Time %","Media Owner Attribute"]
["ExhibitionAndEventVenues"]

{"sheet":"FerriesPorts","index":21,"n_rows":2,"n_cols":26,"rows_kept":2,"cut":false,"hidden":false,"merged":[]}
["Environment","FrameID","Future Start Date","Type","Faces","Illumination","Location","Sales code","Media Owner Frame Reference","Legacy Site Number","Tags","Prohibitions","Production Spec ID","Production Spec not provided reason","SPACE Format","Width","Height","Surface Area","World Geodetic Coordinate Latitude","World Geodetic Coordinate Longitude","Address","PostCode","Spot Length","Break Length","Share of Time %","Media Owner Attribute"]
["FerriesPorts"]

{"sheet":"GPSurgeries","index":22,"n_rows":2,"n_cols":26,"rows_kept":2,"cut":false,"hidden":false,"merged":[]}
["Environment","FrameID","Future Start Date","Type","Faces","Illumination","Location","Sales code","Media Owner Frame Reference","Legacy Site Number","Tags","Prohibitions","Production Spec ID","Production Spec not provided reason","SPACE Format","Width","Height","Surface Area","World Geodetic Coordinate Latitude","World Geodetic Coordinate Longitude","Address","PostCode","Spot Length","Break Length","Share of Time %","Media Owner Attribute"]
["GPSurgeries"]

{"sheet":"GymsHealthSportsClubs","index":23,"n_rows":2,"n_cols":26,"rows_kept":2,"cut":false,"hidden":false,"merged":[]}
["Environment","FrameID","Future Start Date","Type","Faces","Illumination","Location","Sales code","Media Owner Frame Reference","Legacy Site Number","Tags","Prohibitions","Production Spec ID","Production Spec not provided reason","SPACE Format","Width","Height","Surface Area","World Geodetic Coordinate Latitude","World Geodetic Coordinate Longitude","Address","PostCode","Spot Length","Break Length","Share of Time %","Media Owner Attribute"]
["GymsHealthSportsClubs"]

{"sheet":"Hospitals","index":24,"n_rows":2,"n_cols":27,"rows_kept":2,"cut":false,"hidden":false,"merged":[]}
["Environment","FrameID","Future Start Date","Type","Faces","Illumination","Location","Sales code","Media Owner Frame Reference","Legacy Site Number","Tags","Localities","Prohibitions","Production Spec ID","Production Spec not provided reason","SPACE Format","Width","Height","Surface Area","World Geodetic Coordinate Latitude","World Geodetic Coordinate Longitude","Address","PostCode","Spot Length","Break Length","Share of Time %","Media Owner Attribute"]
["Hospitals"]

{"sheet":"Metro","index":25,"n_rows":2,"n_cols":26,"rows_kept":2,"cut":false,"hidden":false,"merged":[]}
["Environment","FrameID","Future Start Date","Type","Faces","Illumination","Location","Sales code","Media Owner Frame Reference","Legacy Site Number","Tags","Prohibitions","Production Spec ID","Production Spec not provided reason","SPACE Format","Width","Height","Surface Area","World Geodetic Coordinate Latitude","World Geodetic Coordinate Longitude","Address","PostCode","Spot Length","Break Length","Share of Time %","Media Owner Attribute"]
["Metro"]

{"sheet":"MobileAdvertising","index":26,"n_rows":2,"n_cols":28,"rows_kept":2,"cut":false,"hidden":false,"merged":[]}
["Environment","FrameID","Future Start Date","Type","Faces","Illumination","Location","Sales code","Media Owner Frame Reference","Legacy Site Number","Tags","Prohibitions","Production Spec ID","Production Spec not provided reason","SPACE Format","Width","Height","Surface Area","Depot ID","World Geodetic Coordinate Latitude","World Geodetic Coordinate Longitude","Address","PostCode","Vehicle Creative Position","Spot Length","Break Length","Share of Time %","Media Owner Attribute"]
["MobileAdvertising"]

{"sheet":"MusicVenues","index":27,"n_rows":2,"n_cols":26,"rows_kept":2,"cut":false,"hidden":false,"merged":[]}
["Environment","FrameID","Future Start Date","Type","Faces","Illumination","Location","Sales code","Media Owner Frame Reference","Legacy Site Number","Tags","Prohibitions","Production Spec ID","Production Spec not provided reason","SPACE Format","Width","Height","Surface Area","World Geodetic Coordinate Latitude","World Geodetic Coordinate Longitude","Address","PostCode","Spot Length","Break Length","Share of Time %","Media Owner Attribute"]
["MusicVenues"]

{"sheet":"NonClassified","index":28,"n_rows":2,"n_cols":26,"rows_kept":2,"cut":false,"hidden":false,"merged":[]}
["Environment","FrameID","Future Start Date","Type","Faces","Illumination","Location","Sales code","Media Owner Frame Reference","Legacy Site Number","Tags","Prohibitions","Production Spec ID","Production Spec not provided reason","SPACE Format","Width","Height","Surface Area","World Geodetic Coordinate Latitude","World Geodetic Coordinate Longitude","Address","PostCode","Spot Length","Break Length","Share of Time %","Media Owner Attribute"]
["NonClassified"]

{"sheet":"NonRouteAirportEnclosed","index":29,"n_rows":2,"n_cols":26,"rows_kept":2,"cut":false,"hidden":false,"merged":[]}
["Environment","FrameID","Future Start Date","Type","Faces","Illumination","Location","Sales code","Media Owner Frame Reference","Legacy Site Number","Tags","Prohibitions","Production Spec ID","Production Spec not provided reason","SPACE Format","Width","Height","Surface Area","World Geodetic Coordinate Latitude","World Geodetic Coordinate Longitude","Address","PostCode","Spot Length","Break Length","Share of Time %","Media Owner Attribute"]
["NonRouteAirportEnclosed "]

{"sheet":"NonRouteAirportOpen","index":30,"n_rows":2,"n_cols":26,"rows_kept":2,"cut":false,"hidden":false,"merged":[]}
["Environment","FrameID","Future Start Date","Type","Faces","Illumination","Location","Sales code","Media Owner Frame Reference","Legacy Site Number","Tags","Prohibitions","Production Spec ID","Production Spec not provided reason","SPACE Format","Width","Height","Surface Area","World Geodetic Coordinate Latitude","World Geodetic Coordinate Longitude","Address","PostCode","Spot Length","Break Length","Share of Time %","Media Owner Attribute"]
["NonRouteAirportOpen"]

{"sheet":"NonRouteBusExterior","index":31,"n_rows":2,"n_cols":28,"rows_kept":2,"cut":false,"hidden":false,"merged":[]}
["Environment","FrameID","Future Start Date","Type","Faces","Illumination","Location","Sales code","Media Owner Frame Reference","Legacy Site Number","Tags","Prohibitions","Production Spec ID","Production Spec not provided reason","SPACE Format","Width","Height","Surface Area","Depot Address","Depot ID","Depot PostCode","Depot World Geodetic Coordinate Latitiude","Depot World Geodetic Coordinate Longtiude","Vehicle Creative Position","Spot Length","Break Length","Share of Time %","Media Owner Attribute"]
["NonRouteBusExterior"]

{"sheet":"NonRouteBusStation","index":32,"n_rows":2,"n_cols":26,"rows_kept":2,"cut":false,"hidden":false,"merged":[]}
["Environment","FrameID","Future Start Date","Type","Faces","Illumination","Location","Sales code","Media Owner Frame Reference","Legacy Site Number","Tags","Prohibitions","Production Spec ID","Production Spec not provided reason","SPACE Format","Width","Height","Surface Area","World Geodetic Coordinate Latitude","World Geodetic Coordinate Longitude","Address","PostCode","Spot Length","Break Length","Share of Time %","Media Owner Attribute"]
["NonRouteBusStation"]

{"sheet":"NonRouteLeisure","index":33,"n_rows":2,"n_cols":26,"rows_kept":2,"cut":false,"hidden":false,"merged":[]}
["Environment","FrameID","Future Start Date","Type","Faces","Illumination","Location","Sales code","Media Owner Frame Reference","Legacy Site Number","Tags","Prohibitions","Production Spec ID","Production Spec not provided reason","SPACE Format","Width","Height","Surface Area","World Geodetic Coordinate Latitude","World Geodetic Coordinate Longitude","Address","PostCode","Spot Length","Break Length","Share of Time %","Media Owner Attribute"]
["NonRouteLeisure"]

{"sheet":"NonRouteMotorwayServiceStation","index":34,"n_rows":2,"n_cols":26,"rows_kept":2,"cut":false,"hidden":false,"merged":[]}
["Environment","FrameID","Future Start Date","Type","Faces","Illumination","Location","Sales code","Media Owner Frame Reference","Legacy Site Number","Tags","Prohibitions","Production Spec ID","Production Spec not provided reason","SPACE Format","Width","Height","Surface Area","World Geodetic Coordinate Latitude","World Geodetic Coordinate Longitude","Address","PostCode","Spot Length","Break Length","Share of Time %","Media Owner Attribute"]
["NonRouteMotorwayServiceStation"]

{"sheet":"NonRouteRailStation","index":35,"n_rows":2,"n_cols":28,"rows_kept":2,"cut":false,"hidden":false,"merged":[]}
["Environment","FrameID","Future Start Date","Type","Faces","Illumination","Location","Sales code","Media Owner Frame Reference","Legacy Site Number","Tags","Localities","Prohibitions","Production Spec ID","Production Spec not provided reason","SPACE Format","Width","Height","Surface Area","Train Operating Company","World Geodetic Coordinate Latitude","World Geodetic Coordinate Longitude","Address","PostCode","Spot Length","Break Length","Share of Time %","Media Owner Attribute"]
["NonRouteRailStation"]

{"sheet":"NonRouteRetailEnclosed","index":36,"n_rows":2,"n_cols":27,"rows_kept":2,"cut":false,"hidden":false,"merged":[]}
["Environment","FrameID","Future Start Date","Type","Faces","Illumination","Location","Sales code","Media Owner Frame Reference","Legacy Site Number","Tags","Localities","Prohibitions","Production Spec ID","Production Spec not provided reason","SPACE Format","Width","Height","Surface Area","World Geodetic Coordinate Latitude","World Geodetic Coordinate Longitude","Address","PostCode","Spot Length","Break Length","Share of Time %","Media Owner Attribute"]
["NonRouteRetailEnclosed"]

{"sheet":"NonRouteRoadside","index":37,"n_rows":2,"n_cols":26,"rows_kept":2,"cut":false,"hidden":false,"merged":[]}
["Environment","FrameID","Future Start Date","Type","Faces","Illumination","Location","Sales code","Media Owner Frame Reference","Legacy Site Number","Tags","Prohibitions","Production Spec ID","Production Spec not provided reason","SPACE Format","Width","Height","Surface Area","World Geodetic Coordinate Latitude","World Geodetic Coordinate Longitude","Address","PostCode","Spot Length","Break Length","Share of Time %","Media Owner Attribute"]
["NonRouteRoadside"]

{"sheet":"NonRouteShoppingPrecinct","index":38,"n_rows":2,"n_cols":27,"rows_kept":2,"cut":false,"hidden":false,"merged":[]}
["Environment","FrameID","Future Start Date","Type","Faces","Illumination","Location","Sales code","Media Owner Frame Reference","Legacy Site Number","Tags","Localities","Prohibitions","Production Spec ID","Production Spec not provided reason","SPACE Format","Width","Height","Surface Area","World Geodetic Coordinate Latitude","World Geodetic Coordinate Longitude","Address","PostCode","Spot Length","Break Length","Share of Time %","Media Owner Attribute"]
["NonRouteShoppingPrecinct"]

{"sheet":"NonRouteSupermarketExterior","index":39,"n_rows":2,"n_cols":27,"rows_kept":2,"cut":false,"hidden":false,"merged":[]}
["Environment","FrameID","Future Start Date","Type","Faces","Illumination","Location","Sales code","Media Owner Frame Reference","Legacy Site Number","Tags","Localities","Prohibitions","Production Spec ID","Production Spec not provided reason","SPACE Format","Width","Height","Surface Area","World Geodetic Coordinate Latitude","World Geodetic Coordinate Longitude","Address","PostCode","Spot Length","Break Length","Share of Time %","Media Owner Attribute"]
["NonRouteSupermarketExterior"]

{"sheet":"NonRouteTaxiExterior","index":40,"n_rows":2,"n_cols":29,"rows_kept":2,"cut":false,"hidden":false,"merged":[]}
["Environment","FrameID","Future Start Date","Type","Faces","Illumination","Location","Sales code","Media Owner Frame Reference","Legacy Site Number","Tags","Prohibitions","Production Spec ID","Production Spec not provided reason","SPACE Format","Width","Height","Surface Area","Depot Address","Depot ID","Depot PostCode","Depot World Geodetic Coordinate Latitiude","Depot World Geodetic Coordinate Longtiude","Heathrow","Vehicle Creative Position","Spot Length","Break Length","Share of Time %","Media Owner Attribute"]
["NonRouteTaxiExterior"]

{"sheet":"NonRouteTrainCarriageInterior","index":41,"n_rows":2,"n_cols":28,"rows_kept":2,"cut":false,"hidden":false,"merged":[]}
["Environment","FrameID","Future Start Date","Type","Faces","Illumination","Location","Sales code","Media Owner Frame Reference","Legacy Site Number","Tags","Localities","Prohibitions","Production Spec ID","Production Spec not provided reason","SPACE Format","Width","Height","Surface Area","Frame Position ID","Map ID","Train Operating Company","World Geodetic Coordinate Latitude","World Geodetic Coordinate Longitude","Spot Length","Break Length","Share of Time %","Media Owner Attribute"]
["NonRouteTrainCarriageInterior"]

{"sheet":"NonRouteTramCarriageInterior","index":42,"n_rows":2,"n_cols":27,"rows_kept":2,"cut":false,"hidden":false,"merged":[]}
["Environment","FrameID","Future Start Date","Type","Faces","Illumination","Location","Sales code","Media Owner Frame Reference","Legacy Site Number","Tags","Prohibitions","Production Spec ID","Production Spec not provided reason","SPACE Format","Width","Height","Surface Area","Frame Position ID","Map ID","TramOrLightRailwayLine","World Geodetic Coordinate Latitude","World Geodetic Coordinate Longitude","Spot Length","Break Length","Share of Time %","Media Owner Attribute"]
["NonRouteTramCarriageInterior"]

{"sheet":"NonRouteTubeCarriageInterior","index":43,"n_rows":2,"n_cols":28,"rows_kept":2,"cut":false,"hidden":false,"merged":[]}
["Environment","FrameID","Future Start Date","Type","Faces","Illumination","Location","Sales code","Media Owner Frame Reference","Legacy Site Number","Tags","Localities","Prohibitions","Production Spec ID","Production Spec not provided reason","SPACE Format","Width","Height","Surface Area","Frame Position ID","Map ID","Train Operating Company","World Geodetic Coordinate Latitude","World Geodetic Coordinate Longitude","Spot Length","Break Length","Share of Time %","Media Owner Attribute"]
["NonRouteTubeCarriageInterior"]

{"sheet":"NonRouteUndergroundStation","index":44,"n_rows":2,"n_cols":29,"rows_kept":2,"cut":false,"hidden":false,"merged":[]}
["Environment","FrameID","Future Start Date","Type","Faces","Illumination","Location","Sales code","Media Owner Frame Reference","Legacy Site Number","Tags","Localities","Prohibitions","Production Spec ID","Production Spec not provided reason","SPACE Format","Width","Height","Surface Area","Frame Position ID","Map ID","UndergroundLine","World Geodetic Coordinate Latitude","World Geodetic Coordinate Longitude","Address","PostCode","Spot Length","Break Length","Share of Time %"]
["NonRouteUndergroundStation"]

{"sheet":"NurseriesPlayCentres","index":45,"n_rows":2,"n_cols":26,"rows_kept":2,"cut":false,"hidden":false,"merged":[]}
["Environment","FrameID","Future Start Date","Type","Faces","Illumination","Location","Sales code","Media Owner Frame Reference","Legacy Site Number","Tags","Prohibitions","Production Spec ID","Production Spec not provided reason","SPACE Format","Width","Height","Surface Area","World Geodetic Coordinate Latitude","World Geodetic Coordinate Longitude","Address","PostCode","Spot Length","Break Length","Share of Time %","Media Owner Attribute"]
["NurseriesPlayCentres"]

{"sheet":"Offices","index":46,"n_rows":2,"n_cols":26,"rows_kept":2,"cut":false,"hidden":false,"merged":[]}
["Environment","FrameID","Future Start Date","Type","Faces","Illumination","Location","Sales code","Media Owner Frame Reference","Legacy Site Number","Tags","Prohibitions","Production Spec ID","Production Spec not provided reason","SPACE Format","Width","Height","Surface Area","World Geodetic Coordinate Latitude","World Geodetic Coordinate Longitude","Address","PostCode","Spot Length","Break Length","Share of Time %","Media Owner Attribute"]
["Offices"]

{"sheet":"PetrolForecourts","index":47,"n_rows":2,"n_cols":26,"rows_kept":2,"cut":false,"hidden":false,"merged":[]}
["Environment","FrameID","Future Start Date","Type","Faces","Illumination","Location","Sales code","Media Owner Frame Reference","Legacy Site Number","Tags","Prohibitions","Production Spec ID","Production Spec not provided reason","SPACE Format","Width","Height","Surface Area","World Geodetic Coordinate Latitude","World Geodetic Coordinate Longitude","Address","PostCode","Spot Length","Break Length","Share of Time %","Media Owner Attribute"]
["PetrolForecourts"]

{"sheet":"Residential","index":48,"n_rows":1,"n_cols":26,"rows_kept":1,"cut":false,"hidden":false,"merged":[]}
["Environment","FrameID","Future Start Date","Type","Faces","Illumination","Location","Sales code","Media Owner Frame Reference","Legacy Site Number","Tags","Prohibitions","Production Spec ID","Production Spec not provided reason","SPACE Format","Width","Height","Surface Area","World Geodetic Coordinate Latitude","World Geodetic Coordinate Longitude","Address","PostCode","Spot Length","Break Length","Share of Time %","Media Owner Attribute"]

{"sheet":"RetailOther","index":49,"n_rows":2,"n_cols":26,"rows_kept":2,"cut":false,"hidden":false,"merged":[]}
["Environment","FrameID","Future Start Date","Type","Faces","Illumination","Location","Sales code","Media Owner Frame Reference","Legacy Site Number","Tags","Prohibitions","Production Spec ID","Production Spec not provided reason","SPACE Format","Width","Height","Surface Area","World Geodetic Coordinate Latitude","World Geodetic Coordinate Longitude","Address","PostCode","Spot Length","Break Length","Share of Time %","Media Owner Attribute"]
["RetailOther"]

{"sheet":"RetailParks","index":50,"n_rows":2,"n_cols":26,"rows_kept":2,"cut":false,"hidden":false,"merged":[]}
["Environment","FrameID","Future Start Date","Type","Faces","Illumination","Location","Sales code","Media Owner Frame Reference","Legacy Site Number","Tags","Prohibitions","Production Spec ID","Production Spec not provided reason","SPACE Format","Width","Height","Surface Area","World Geodetic Coordinate Latitude","World Geodetic Coordinate Longitude","Address","PostCode","Spot Length","Break Length","Share of Time %","Media Owner Attribute"]
["RetailParks"]

{"sheet":"Schools","index":51,"n_rows":2,"n_cols":26,"rows_kept":2,"cut":false,"hidden":false,"merged":[]}
["Environment","FrameID","Future Start Date","Type","Faces","Illumination","Location","Sales code","Media Owner Frame Reference","Legacy Site Number","Tags","Prohibitions","Production Spec ID","Production Spec not provided reason","SPACE Format","Width","Height","Surface Area","World Geodetic Coordinate Latitude","World Geodetic Coordinate Longitude","Address","PostCode","Spot Length","Break Length","Share of Time %","Media Owner Attribute"]
["Schools"]

{"sheet":"SportsVenues","index":52,"n_rows":2,"n_cols":26,"rows_kept":2,"cut":false,"hidden":false,"merged":[]}
["Environment","FrameID","Future Start Date","Type","Faces","Illumination","Location","Sales code","Media Owner Frame Reference","Legacy Site Number","Tags","Prohibitions","Production Spec ID","Production Spec not provided reason","SPACE Format","Width","Height","Surface Area","World Geodetic Coordinate Latitude","World Geodetic Coordinate Longitude","Address","PostCode","Spot Length","Break Length","Share of Time %","Media Owner Attribute"]
["SportsVenues"]

{"sheet":"SupermarketInteriors","index":53,"n_rows":2,"n_cols":26,"rows_kept":2,"cut":false,"hidden":false,"merged":[]}
["Environment","FrameID","Future Start Date","Type","Faces","Illumination","Location","Sales code","Media Owner Frame Reference","Legacy Site Number","Tags","Prohibitions","Production Spec ID","Production Spec not provided reason","SPACE Format","Width","Height","Surface Area","World Geodetic Coordinate Latitude","World Geodetic Coordinate Longitude","Address","PostCode","Spot Length","Break Length","Share of Time %","Media Owner Attribute"]
["SupermarketInteriors"]

{"sheet":"Universities","index":54,"n_rows":2,"n_cols":26,"rows_kept":2,"cut":false,"hidden":false,"merged":[]}
["Environment","FrameID","Future Start Date","Type","Faces","Illumination","Location","Sales code","Media Owner Frame Reference","Legacy Site Number","Tags","Prohibitions","Production Spec ID","Production Spec not provided reason","SPACE Format","Width","Height","Surface Area","World Geodetic Coordinate Latitude","World Geodetic Coordinate Longitude","Address","PostCode","Spot Length","Break Length","Share of Time %","Media Owner Attribute"]
["Universities"]

{"sheet":"VeterinarySurgeries","index":55,"n_rows":2,"n_cols":26,"rows_kept":2,"cut":false,"hidden":false,"merged":[]}
["Environment","FrameID","Future Start Date","Type","Faces","Illumination","Location","Sales code","Media Owner Frame Reference","Legacy Site Number","Tags","Prohibitions","Production Spec ID","Production Spec not provided reason","SPACE Format","Width","Height","Surface Area","World Geodetic Coordinate Latitude","World Geodetic Coordinate Longitude","Address","PostCode","Spot Length","Break Length","Share of Time %","Media Owner Attribute"]
["VeterinarySurgeries"]